bitfinex-derivatives/quotes_ETHF0:USTF0_20250614
["timestamp","ask_amount","ask_price","bid_price","bid_amount"]
[1749881945571,0.47038,2550.0,2549.8,1.79047671]
[1749881946373,0.47039,2549.9,2549.8,0.00587671]
[1749881948165,1.45325533,2549.9,2549.8,0.00587671]
[1749881949477,0.98286533,2549.9,2549.8,0.00587671]
[1749881950382,1.45325533,2549.9,2549.8,0.00587671]
[1749881951776,6.45325533,2549.9,2549.8,0.00587671]
[1749881952081,7.71095533,2549.9,2549.8,0.00587671]
[1749881953479,2.71095533,2549.9,2549.8,0.00587671]
[1749881954177,1.45325533,2549.9,2549.8,0.00587671]
[1749881954384,7.53786533,2549.9,2549.8,1.13618671]
[1749881954582,8.00825533,2549.9,2549.8,0.66577671]
[1749881954983,0.47041,2549.8,2549.7,0.099]
[1749881955184,1.45327533,2549.8,2549.7,0.099]
[1749881955382,5.89797533,2549.8,2549.7,0.099]
[1749881955583,5.89797533,2549.8,2549.1,0.6778]
[1749881955584,16.69259193,2549.8,2548.6,3.2078]
[1749881955878,0.47064,2548.6,2548.3,3.2078]
[1749881956081,6.556,2548.5,2548.4,0.6599]
[1749881956275,6.556,2548.5,2548.4,2.44527]
[1749881956981,0.47067,2548.4,2548.3,3.2078]
[1749881957173,4.18923296,2548.4,2547.2,1.3393]
[1749881957377,4.18923296,2548.4,2547.8,3.2078]
[1749881957378,10.06813296,2548.3,2547.8,3.2078]
[1749881957576,1.45215296,2548.2,2547.8,3.2078]
[1749881957775,0.98143296,2548.1,2547.8,3.2078]
[1749881957971,3.2078,2548.0,2547.4,3.2078]
[1749881958174,3.2078,2548.0,2546.7,6.557]
[1749881958175,3.2078,2548.0,2547.1,3.2078]
[1749881958374,3.2078,2547.6,2546.7,3.2078]
[1749881958581,0.47098,2546.8,2546.4,3.2078]
[1749881958776,6.862,2546.7,2546.4,3.2078]
[1749881958989,6.862,2546.9,2546.4,3.2078]
[1749881959279,6.862,2546.9,2546.5,1.2667]
[1749881959486,3.2078,2547.2,2546.6,0.47099]
[1749881959677,0.47093,2547.0,2546.4,3.74692268]
[1749881959878,0.47094,2547.0,2546.4,3.74692268]
[1749881960079,3.2078,2547.2,2546.6,0.471]
[1749881960381,6.862,2547.1,2546.7,1.2667]
[1749881960683,6.862,2547.1,2546.4,3.27589268]
[1749881960684,0.47098,2546.8,2546.4,3.27589268]
[1749881960882,0.47098,2546.8,2546.5,1.3481]
[1749881961282,8.67262,2547.1,2546.6,0.471]
[1749881961487,0.47674836,2547.4,2546.7,3.2078]
[1749881961678,0.4709,2547.2,2546.8,1.3481]
[1749881961879,3.6787,2547.2,2546.8,1.3481]
[1749881962176,3.6787,2547.2,2546.4,3.27589268]
[1749881962177,3.2078,2547.2,2546.4,3.27589268]
[1749881962482,6.864,2547.1,2546.9,0.47093]
[1749881962788,6.864,2547.1,2546.8,1.11955]
[1749881963085,6.864,2547.1,2546.8,0.6486]
[1749881963283,0.47093,2547.0,2546.8,0.6486]
[1749881963481,0.47095,2546.9,2546.8,0.6486]
[1749881963682,0.47095,2546.9,2546.7,3.2078]
[1749881963878,0.47095,2546.9,2546.5,1.9973]
[1749881964079,0.47102,2546.5,2546.4,2.68e-06]
[1749881964386,32.82902,2546.5,2546.4,0.06809268]
[1749881964574,39.07042,2546.5,2546.4,0.06809268]
[1749881964881,13.57742,2546.5,2546.4,0.06809268]
[1749881965082,6.71242,2546.5,2546.4,0.06809268]
[1749881965282,0.4711,2546.1,2545.7,0.47116]
[1749881965487,0.47109,2546.2,2545.8,1.78015]
[1749881965683,6.865,2546.1,2545.9,3.2078]
[1749881965884,0.00588836,2546.3,2546.0,1.7801]
[1749881966275,35.5648,2546.2,2545.5,0.15830962]
[1749881966588,35.5648,2546.2,2544.6,1.17843]
[1749881966589,1.17802,2545.5,2544.3,3.2078]
[1749881966786,3.2078,2545.1,2544.3,3.2078]
[1749881967081,0.6409,2545.4,2544.1,1.309]
[1749881967082,0.00588836,2545.0,2544.6,3.2078]
[1749881967290,0.00588836,2545.0,2544.9,3.67912]
[1749881967488,7.161,2545.6,2545.3,0.47124]
[1749881967684,3.67896,2545.8,2545.4,1.34032142]
[1749881967990,7.63214,2545.9,2545.4,1.81154142]
[1749881968188,7.161,2545.9,2545.4,1.34032142]
[1749881968383,7.161,2546.0,2545.4,1.81154142]
[1749881968581,7.16688836,2546.0,2545.4,1.34032142]
[1749881968786,3.67896,2545.8,2545.4,1.3241]
[1749881968989,0.47117,2545.7,2545.4,1.3241]
[1749881969189,3.67896,2545.8,2545.4,1.3241]
[1749881969893,3.2078,2545.5,2544.7,0.00588836]
[1749881970087,3.2078,2545.0,2544.7,0.00588836]
[1749881970286,7.162,2545.1,2544.8,0.47132]
[1749881970487,7.162,2545.1,2544.8,1.81392]
[1749881970691,0.47126,2545.3,2544.9,0.47132]
[1749881970893,7.162,2545.2,2544.7,3.21368836]
[1749881971190,3.2078,2545.1,2544.7,0.00588836]
[1749881971490,3.8594,2545.4,2544.8,3.2078]
[1749881971787,0.47127,2545.2,2544.9,1.3426]
[1749881972393,7.63329,2545.1,2544.7,0.00588836]
[1749881972691,0.4713,2545.0,2544.7,0.00588836]
[1749881972887,7.162,2545.1,2544.7,0.00588836]
[1749881973185,0.47131,2545.0,2544.7,0.00588836]
[1749881973382,7.63329,2545.1,2544.7,0.00588836]
[1749881973585,0.4713,2545.0,2544.7,0.00588836]
[1749881973783,7.162,2545.1,2544.7,0.00588836]
[1749881973979,0.47131,2545.0,2544.7,0.00588836]
[1749881974195,7.162,2545.1,2544.7,0.00588836]
[1749881974879,5.1135,2545.4,2544.8,0.47134]
[1749881974880,0.47127,2545.2,2544.8,0.47134]
[1749881975087,3.8594,2545.4,2544.9,1.3514]
[1749881975290,7.164,2545.3,2544.9,1.82271]
[1749881975492,0.47126,2545.2,2544.9,1.3514]
[1749881975681,7.164,2545.3,2544.9,1.3514]
[1749881975884,3.2078,2545.4,2544.9,6.3514]
[1749881976087,3.2078,2545.7,2545.2,3.2078]
[1749881976288,3.2078,2545.7,2545.1,0.47127]
[1749881976591,0.47123,2545.4,2545.0,0.47129]
[1749881976796,0.47123,2545.4,2545.1,1.83348]
[1749881976995,0.47123,2545.4,2545.1,1.3622]
[1749881977600,7.165,2545.5,2545.1,1.83348]
[1749881977894,7.63622,2545.5,2545.1,1.83347]
[1749881978092,7.165,2545.5,2545.1,1.83347]
[1749881978489,0.47123,2545.4,2545.1,0.47127]
[1749881978689,0.47124,2545.3,2545.2,1.3622]
[1749881978890,0.47124,2545.3,2545.0,0.4713]
[1749881979492,0.47124,2545.4,2545.0,0.4713]
[1749881979696,0.47127,2545.2,2544.9,3.2078]
[1749881979894,0.47127,2545.2,2544.9,3.67911]
[1749881980598,1.3081,2545.4,2544.9,3.67911]
[1749881980599,1.3081,2545.4,2544.9,3.2078]
[1749881980889,0.47121,2545.5,2545.2,0.47126]
[1749881981199,7.63723,2545.4,2545.1,0.47127]
[1749881982390,7.63723,2545.4,2545.0,1.3487]
[1749881982391,0.47124,2545.3,2545.0,1.81999]
[1749881982594,0.47124,2545.3,2545.1,0.47128]
[1749881983198,0.47124,2545.3,2545.0,1.81999]
[1749881983800,0.47124,2545.3,2545.1,0.47128]
[1749881984193,0.47124,2545.4,2545.1,0.47128]
[1749881984501,0.47125,2545.3,2545.0,0.47129]
[1749881984994,0.47124,2545.4,2545.1,0.47128]
[1749881985601,7.166,2545.5,2545.0,1.2728]
[1749881985803,7.166,2545.5,2545.0,1.74409]
[1749881986195,0.47125,2545.3,2545.0,1.74409]
[1749881986597,0.47122,2545.5,2545.2,0.47125]
[1749881986895,1.45051409,2545.4,2545.3,1.2728]
[1749881987100,0.97928409,2545.4,2544.9,3.2078]
[1749881987299,0.47124,2545.4,2545.0,1.2728]
[1749881987498,3.12342051,2546.9,2545.4,1.17807]
[1749881987702,4.38524,2546.8,2545.9,3.2078]
[1749881987902,3.2078,2546.5,2545.9,3.2078]
[1749881988104,0.47111,2546.0,2545.9,3.2078]
[1749881988299,1.3682,2546.4,2545.6,3.2078]
[1749881988502,0.47116,2545.8,2545.7,0.00588836]
[1749881989308,1.83936,2545.8,2545.7,0.00588836]
[1749881990703,1.83936,2545.8,2545.7,0.07398104]
[1749881992902,1.3682,2545.8,2545.3,3.2078]
[1749881993100,1.3682,2545.8,2545.1,0.6219]
[1749881993501,0.47122,2545.5,2545.2,0.47126]
[1749881993700,1.3682,2545.8,2545.7,0.06809268]
[1749881993701,1.83935,2545.8,2545.7,0.06809268]
[1749881995506,9.00635,2545.8,2545.7,0.06809268]
[1749881999407,9.94870089,2545.8,2545.7,0.06809268]
[1749882000803,9.00635,2545.8,2545.7,0.06809268]
[1749882001006,9.948698,2545.8,2545.7,0.06809268]
[1749882005111,17.60096851,2545.8,2545.1,0.6219]
[1749882005317,0.47126,2545.2,2545.1,0.6219]
[1749882005613,0.47128,2545.1,2545.0,3.2078]
[1749882005813,1.413628,2545.1,2545.0,3.2078]
[1749882006709,0.942348,2545.1,2545.0,3.2078]
[1749882006912,0.942348,2545.1,2545.0,3.67909]
[1749882007118,1.413628,2545.1,2545.0,3.2078]
[1749882007718,0.942348,2545.1,2545.0,3.2078]
[1749882007919,1.413628,2545.1,2545.0,3.2078]
[1749882008120,0.47145,2544.2,2544.1,3.2078]
[1749882008418,0.47148,2544.1,2543.8,3.8613]
[1749882008619,0.942348,2544.0,2543.8,3.2078]
[1749882008918,0.942348,2543.9,2543.8,3.67932]
[1749882009114,0.942348,2543.9,2543.8,4.5095]
[1749882009317,0.942348,2543.9,2543.7,0.01035814]
[1749882009514,3.2078,2544.3,2543.7,0.01035814]
[1749882009816,0.00588836,2544.4,2544.3,0.47143]
[1749882010023,0.00588836,2544.4,2544.3,3.05883]
[1749882010218,0.00588836,2544.4,2543.7,3.21815814]
[1749882010418,0.93118468,2544.3,2543.7,3.21815814]
[1749882010720,0.93052836,2544.2,2544.1,0.47147]
[1749882010917,0.00588836,2544.4,2544.3,0.47143]
[1749882011315,0.00588836,2544.4,2544.3,5.47143]
[1749882011519,0.00588836,2544.4,2544.3,6.74833]
[1749882012025,2.34250253,2545.2,2544.3,6.74833]
[1749882012026,3.67907,2545.2,2544.8,0.47133]
[1749882012316,0.93062761,2545.1,2544.8,3.2078]
[1749882012518,0.47127,2545.2,2544.9,0.657]
[1749882012723,0.93060054,2545.1,2544.9,1.2853]
[1749882012915,0.47127,2545.2,2544.9,1.2853]
[1749882013223,1.40188268,2545.1,2544.9,1.2853]
[1749882013424,7.94758836,2545.3,2544.9,1.2853]
[1749882013625,0.47129,2545.1,2544.9,1.2853]
[1749882014120,0.47127,2545.2,2544.9,1.75661]
[1749882014316,0.4713,2545.0,2544.9,1.2853]
[1749882014521,1.40195277,2545.0,2544.9,0.6283]
[1749882014719,0.93065277,2545.0,2544.7,0.00588836]
[1749882014913,4.5351,2545.2,2544.7,0.00588836]
[1749882015122,0.93055232,2545.1,2544.7,0.00588836]
[1749882015321,0.47133,2544.9,2544.7,0.00588836]
[1749882015917,0.47133,2544.9,2544.7,0.47723836]
[1749882016122,0.47129,2545.1,2544.8,0.47133]
[1749882016415,3.2078,2545.2,2544.9,0.47132]
[1749882016619,3.2078,2545.2,2545.0,0.6393]
[1749882016925,0.47128,2545.1,2545.0,0.6393]
[1749882017317,3.67907,2545.2,2545.0,1.1106]
[1749882017623,3.67907,2545.2,2545.0,0.6393]
[1749882018020,3.67907,2545.2,2545.0,1.11059]
[1749882018324,0.47128,2545.1,2545.0,0.6393]
[1749882018918,3.2078,2545.2,2545.0,1.1106]
[1749882019123,3.2078,2545.2,2545.0,1.11059]
[1749882019524,3.67907,2545.2,2545.0,0.6393]
[1749882020027,0.47128,2545.1,2545.0,0.6393]
[1749882020324,0.47128,2545.1,2545.0,0.70739268]
[1749882021927,3.67907,2545.2,2545.0,1.17869268]
[1749882022325,3.67907,2545.2,2545.0,0.70739268]
[1749882023230,3.2078,2545.2,2545.0,1.17869268]
[1749882023529,3.67907,2545.2,2545.0,1.17869268]
[1749882023721,3.67907,2545.2,2545.0,0.70739268]
[1749882023924,3.67907,2545.2,2545.0,1.17868268]
[1749882025329,3.67907,2545.2,2545.1,0.47128]
[1749882025330,3.2078,2545.2,2545.1,0.47128]
[1749882025626,3.2078,2545.2,2545.1,1.11968]
[1749882025825,0.47713836,2545.3,2545.2,0.47126]
[1749882025826,0.00588836,2545.3,2545.2,0.47126]
[1749882026131,0.00588836,2545.3,2545.2,1.75246]
[1749882027221,0.47111,2546.0,2545.2,6.2812]
[1749882027422,1.40227887,2545.9,2545.7,0.47116]
[1749882027624,0.47113,2545.9,2545.7,0.47116]
[1749882027929,11.1551,2546.1,2545.6,1.3496]
[1749882028127,0.47116,2545.8,2545.6,1.3496]
[1749882028830,0.47700836,2546.0,2545.7,0.47116]
[1749882029130,0.93100869,2545.9,2545.8,0.47113]
[1749882029323,0.47701836,2546.0,2545.7,1.74986]
[1749882029532,0.47114,2545.9,2545.7,1.74987]
[1749882031032,0.00588836,2546.0,2545.7,1.2787]
[1749882031221,0.47115,2545.9,2545.7,1.2787]
[1749882031624,0.00588836,2546.0,2545.7,1.2787]
[1749882031831,0.47700836,2546.0,2545.7,1.2787]
[1749882032025,0.47114,2545.9,2545.7,1.74986]
[1749882032730,0.47114,2545.9,2545.7,1.74987]
[1749882034637,0.00588836,2546.0,2545.9,0.47113]
[1749882036038,0.00588836,2546.0,2545.9,6.77403]
[1749882036327,0.00588836,2546.0,2545.9,1.77403]
[1749882041132,0.00588836,2546.0,2545.9,0.47113]
[1749882045133,0.00588836,2546.0,2545.8,3.2078]
[1749882045436,0.47699836,2546.0,2545.8,3.67894]
[1749882045733,0.47699836,2546.0,2545.8,0.47114]
[1749882046041,0.00588836,2546.0,2545.9,0.47113]
[1749882046440,0.00588836,2546.0,2545.8,0.47114]
[1749882046842,0.00588836,2546.0,2545.8,3.67894]
[1749882047034,0.47699836,2546.0,2545.8,3.67894]
[1749882047334,0.00588836,2546.0,2545.9,0.47113]
[1749882048345,0.00588836,2546.0,2545.8,4.35654]
[1749882048843,0.00588836,2546.0,2545.8,3.8854]
[1749882049041,0.00588836,2546.0,2545.9,0.47113]
[1749882049238,0.00588836,2546.0,2545.8,4.35653]
[1749882049446,0.47700836,2546.0,2545.8,1.14875]
[1749882049744,1.73300836,2546.0,2545.8,1.14875]
[1749882050437,1.73300836,2546.0,2545.8,1.21684268]
[1749882050646,1.26188836,2546.0,2545.8,0.74569268]
[1749882050841,2.40041836,2546.0,2545.8,1.21683268]
[1749882051043,1.92928836,2546.0,2545.9,0.47113]
[1749882051341,1.92928836,2546.0,2545.8,0.74569268]
[1749882051541,1.92928836,2546.0,2545.9,0.47113]
[1749882052842,2.85967554,2546.0,2545.9,0.47113]
[1749882053242,3.33078554,2546.0,2545.8,1.14874]
[1749882053443,0.47114,2545.9,2545.7,0.47117]
[1749882053645,1.79464,2545.9,2545.7,0.47117]
[1749882054044,1.3235,2545.9,2545.8,0.47115]
[1749882054346,2.25491472,2545.9,2545.8,0.47115]
[1749882054649,2.25491472,2545.9,2545.5,3.874]
[1749882054844,0.47116,2545.8,2545.6,0.47118]
[1749882055044,0.47118,2545.7,2545.5,4.3452]
[1749882055345,0.47117,2545.7,2545.5,3.679]
[1749882056441,0.47117,2545.7,2545.2,10.18359937]
[1749882056442,3.2078,2545.7,2545.2,2.97559937]
[1749882056746,0.47121,2545.5,2545.3,0.47124]
[1749882056945,2.4669,2545.6,2545.4,0.47123]
[1749882057243,0.93197127,2545.5,2545.4,0.47123]
[1749882057544,1.3343,2545.9,2545.8,0.06809268]
[1749882057846,6.61801935,2545.9,2545.8,0.06809268]
[1749882058644,11.61801935,2545.9,2545.8,0.06809268]
[1749882059347,6.61801935,2545.9,2545.8,0.06809268]
[1749882060540,11.61801935,2545.9,2545.8,0.06809268]
[1749882064553,4.13988935,2545.9,2545.8,0.53924268]
[1749882064749,0.93208935,2545.9,2545.8,0.06809268]
[1749882064945,0.93208935,2545.9,2545.8,0.53924268]
[1749882065350,0.93208935,2545.9,2545.8,0.06809268]
[1749882065351,1.40321935,2545.9,2545.8,0.06809268]
[1749882065553,2.77731935,2545.9,2545.8,0.06809268]
[1749882066649,5.98511935,2545.9,2545.8,0.06809268]
[1749882066841,10.98511935,2545.9,2545.8,0.06809268]
[1749882067041,0.47123,2545.4,2545.2,3.67905]
[1749882068246,1.3602,2545.6,2545.2,3.2078]
[1749882068443,0.92846718,2545.5,2545.0,1.2773]
[1749882068649,0.47128,2545.1,2545.0,1.2773]
[1749882068951,0.47128,2545.1,2545.0,0.6421]
[1749882069149,1.39955126,2545.1,2545.0,0.6421]
[1749882070154,0.92827126,2545.1,2545.0,0.6421]
[1749882070356,1.39955126,2545.1,2545.0,0.6421]
[1749882071559,0.47132,2544.9,2544.7,0.47723836]
[1749882071756,0.47132,2544.9,2544.7,1.13593836]
[1749882072253,0.47132,2544.9,2544.7,0.66458836]
[1749882072451,0.47134,2544.8,2544.7,0.66458836]
[1749882072856,0.92779807,2544.8,2544.7,0.66458836]
[1749882073052,5.2157,2545.2,2544.7,0.66458836]
[1749882073357,0.47134,2544.8,2544.7,0.66458836]
[1749882075250,0.47134,2544.8,2544.7,0.00588836]
[1749882075451,1.39840957,2544.8,2544.7,0.00588836]
[1749882076255,0.47134,2544.8,2544.7,0.00588836]
[1749882078767,1.39811188,2544.8,2544.7,0.00588836]
[1749882079963,1.39811188,2544.8,2544.7,0.07398104]
[1749882080564,3.29901188,2544.8,2544.7,0.07398104]
[1749882082360,3.29901188,2544.8,2544.4,0.6767]
[1749882082361,0.47139,2544.5,2544.4,0.6767]
[1749882084664,0.47139,2544.5,2544.2,0.00588836]
[1749882084665,0.47143,2544.3,2544.2,0.00588836]
[1749882088777,3.67923,2544.3,2544.2,0.00588836]
[1749882093075,3.67923,2544.3,2543.4,7.11490881]
[1749882093076,0.47151,2543.9,2543.4,7.11490881]
[1749882093280,3.8316,2544.3,2543.6,3.8549]
[1749882093587,0.47151,2543.9,2543.7,0.48188814]
[1749882093981,5.085,2544.3,2543.7,0.01035814]
[1749882094283,0.47152,2543.9,2543.7,1.80639814]
[1749882094471,0.4715,2544.0,2543.7,1.80639814]
[1749882094676,0.4715,2543.9,2543.7,1.80639814]
[1749882094875,0.4715,2544.0,2543.7,1.80639814]
[1749882095070,3.8316,2544.3,2543.7,1.40295082]
[1749882095275,3.8316,2544.3,2544.2,0.47145]
[1749882095276,3.2078,2544.3,2544.2,0.47145]
[1749882095479,3.2078,2544.3,2543.9,3.2078]
[1749882095480,3.2078,2544.3,2544.1,0.47145]
[1749882095679,3.2078,2544.3,2544.2,0.47145]
[1749882096674,3.2078,2544.3,2544.1,0.47145]
[1749882096881,3.2078,2544.3,2544.2,1.10615]
[1749882098585,0.00588836,2544.5,2544.3,0.47141]
[1749882098780,0.00588836,2544.5,2544.4,0.47141]
[1749882098981,0.93498688,2544.5,2544.4,0.47141]
[1749882100085,1.40637688,2544.5,2544.3,1.71582]
[1749882100287,0.47727836,2544.5,2544.3,1.71582]
[1749882100485,0.00588836,2544.5,2544.4,0.47141]
[1749882101089,0.00588836,2544.5,2544.1,2.33579937]
[1749882101297,0.92952286,2544.4,2543.9,0.4715]
[1749882101596,0.47147,2544.2,2543.9,0.4715]
[1749882101893,0.47147,2544.2,2544.0,0.47148]
[1749882102095,3.2078,2544.4,2544.2,0.47144]
[1749882102294,3.2078,2544.4,2544.3,0.6749]
[1749882102485,4.13751518,2544.4,2544.3,1.81613]
[1749882102686,0.92971518,2544.4,2544.3,1.81613]
[1749882102888,0.00588836,2544.5,2544.4,0.47141]
[1749882103295,0.00588836,2544.5,2544.4,5.47141]
[1749882103492,0.00588836,2544.5,2544.4,1.2534]
[1749882103687,0.47727836,2544.5,2544.4,1.2534]
[1749882103888,0.00588836,2544.5,2544.4,1.2534]
[1749882104095,0.47727836,2544.5,2544.4,1.2534]
[1749882104295,0.47727836,2544.5,2544.3,1.3447]
[1749882104296,0.47141,2544.4,2544.3,1.3447]
[1749882105485,0.47148,2544.1,2543.9,2.33579937]
[1749882105792,0.47148,2544.1,2543.8,3.49030937]
[1749882105993,0.47149,2544.0,2543.8,1.15451]
[1749882106294,0.47148,2544.1,2543.8,1.15451]
[1749882106495,0.47148,2544.1,2543.9,0.4715]
[1749882106796,0.47146,2544.2,2543.9,0.4715]
[1749882106991,0.47148,2544.0,2543.8,1.9995]
[1749882107197,0.47148,2544.0,2543.8,0.683]
[1749882107601,0.4715,2543.9,2543.8,0.683]
[1749882108697,1.40152709,2543.9,2543.8,0.683]
[1749882109199,0.93002709,2543.9,2543.8,0.683]
[1749882109400,0.93002709,2543.9,2543.8,1.15452]
[1749882109701,0.47146,2544.2,2544.0,0.47148]
[1749882109895,0.93039967,2544.1,2544.0,0.47148]
[1749882110099,0.93039967,2544.1,2543.9,0.47149]
[1749882110295,0.47145,2544.2,2543.9,5.01889]
[1749882110494,0.93050564,2544.1,2543.9,5.01889]
[1749882110797,3.2078,2544.4,2543.9,4.5474]
[1749882111002,0.93052053,2544.3,2544.1,0.47146]
[1749882111298,3.67922,2544.4,2544.1,0.47146]
[1749882111602,0.93060367,2544.3,2544.1,0.47146]
[1749882111904,3.67922,2544.4,2544.1,0.47146]
[1749882112202,0.93060115,2544.3,2544.1,0.47146]
[1749882112411,3.67922,2544.4,2544.1,0.47146]
[1749882112598,0.93097696,2544.3,2544.2,0.47145]
[1749882113002,0.93097696,2544.3,2543.9,4.5474]
[1749882113199,3.67922,2544.4,2543.9,4.5474]
[1749882113397,0.93098667,2544.3,2543.9,4.5474]
[1749882113600,3.2078,2544.4,2544.3,0.47143]
[1749882113800,4.61019169,2544.4,2544.2,0.47144]
[1749882114001,0.93098169,2544.3,2544.2,0.47144]
[1749882114506,0.93098169,2544.3,2544.1,0.47145]
[1749882114702,1.40241169,2544.3,2544.1,0.47145]
[1749882115001,0.47143,2544.3,2544.1,0.47145]
[1749882116107,0.47142,2544.4,2544.1,0.47145]
[1749882116407,0.93099186,2544.3,2544.0,3.2078]
[1749882116604,0.00588836,2544.5,2544.0,3.2078]
[1749882116807,0.93099789,2544.4,2544.3,3.67922]
[1749882117003,0.93099789,2544.4,2544.2,1.14724]
[1749882117309,0.47727836,2544.5,2544.3,0.47143]
[1749882117501,0.93071238,2544.4,2544.3,1.13073]
[1749882117699,1.40212238,2544.4,2544.3,0.6593]
[1749882117900,0.47145,2544.2,2544.0,3.67928]
[1749882120211,0.47144,2544.3,2544.0,3.67928]
[1749882120410,0.47147,2544.1,2544.0,3.2078]
[1749882120907,0.47146,2544.2,2544.0,3.67928]
[1749882121108,1.3603,2544.4,2544.0,3.2078]
[1749882121304,0.93071557,2544.3,2544.2,0.47145]
[1749882122305,0.00588836,2544.5,2544.4,0.47141]
[1749882122507,0.93669096,2544.5,2544.4,0.47141]
[1749882123306,0.93669096,2544.5,2544.0,6.81509937]
[1749882123506,0.00588836,2544.5,2544.4,0.47141]
[1749882123713,0.93665305,2544.5,2544.4,0.47141]
[1749882123905,0.00588836,2544.5,2544.4,8.02931]
[1749882124205,3.67909,2545.1,2544.4,7.5579]
[1749882124509,0.93091196,2545.0,2544.9,0.47132]
[1749882125404,0.00588836,2545.2,2545.1,0.47128]
[1749882125609,0.93609598,2545.2,2545.1,0.47128]
[1749882126008,0.00588836,2545.2,2545.1,0.47128]
[1749882126211,0.00588836,2545.2,2545.1,1.78658]
[1749882126512,0.00588836,2545.2,2545.1,0.47128]
[1749882130318,0.00588836,2545.2,2545.0,8.43359]
[1749882130812,0.00588836,2545.2,2545.1,0.47128]
[1749882135716,0.00588836,2545.2,2544.9,3.2078]
[1749882135907,0.47134,2544.8,2544.7,6.695]
[1749882136107,2.6121,2545.1,2544.7,7.16635]
[1749882136311,2.6121,2545.1,2544.7,0.47135]
[1749882136914,0.47131,2545.0,2544.7,0.47135]
[1749882137114,1.319,2544.9,2544.6,0.6858]
[1749882137316,1.319,2544.9,2544.5,3.2078]
[1749882137507,0.47137,2544.6,2544.4,0.06809268]
[1749882137712,1.2654,2544.5,2544.4,0.06809268]
[1749882138223,1.2654,2544.5,2544.4,0.53950268]
[1749882142322,1.2654,2544.5,2544.4,0.06809268]
[1749882142516,1.953,2544.5,2544.4,0.53950268]
[1749882143021,0.6793,2544.6,2544.5,0.47139]
[1749882143422,0.47143,2544.3,2543.9,3.2078]
[1749882143613,0.47152,2543.8,2543.4,0.47159]
[1749882144422,1.80492,2543.8,2543.4,0.47159]
[1749882145623,1.80492,2543.8,2543.3,0.6446]
[1749882145822,1.80492,2543.8,2543.4,0.47158]
[1749882146221,1.80492,2543.8,2543.4,0.47159]
[1749882146420,1.80492,2543.8,2543.3,0.6446]
[1749882146922,1.80492,2543.8,2543.3,1.1162]
[1749882147125,1.80492,2543.8,2543.3,0.6446]
[1749882147825,1.80492,2543.8,2543.4,0.47159]
[1749882149328,1.80492,2543.8,2543.5,0.47157]
[1749882149529,0.6198,2544.2,2543.6,6.696]
[1749882149823,0.47152,2543.8,2543.3,7.3416]
[1749882150026,0.47152,2543.8,2543.5,0.47157]
[1749882150230,1.3505,2543.8,2543.6,0.47156]
[1749882151828,3.2078,2543.9,2543.8,0.47152]
[1749882152027,7.3514,2544.1,2543.9,0.47149]
[1749882152628,8.7019,2544.1,2543.9,0.47149]
[1749882153425,8.7019,2544.1,2543.3,0.6446]
[1749882153630,3.67931,2543.9,2543.6,0.47155]
[1749882153931,1.3064,2543.8,2543.6,0.47155]
[1749882154828,1.77792,2543.8,2543.5,0.47157]
[1749882155028,1.77792,2543.8,2543.7,0.07845082]
[1749882155622,1.3064,2543.8,2543.7,0.07845082]
[1749882156230,3.2078,2543.9,2543.7,0.07845082]
[1749882156429,3.2078,2543.9,2543.7,0.54998082]
[1749882156820,0.47152,2543.8,2543.7,0.07845082]
[1749882157027,1.78642,2543.8,2543.7,0.07845082]
[1749882157225,1.3149,2543.8,2543.7,0.07845082]
[1749882157428,3.6793,2543.9,2543.7,0.07845082]
[1749882158827,3.67932,2543.8,2543.7,0.07845082]
[1749882159428,3.2078,2543.8,2543.7,0.07845082]
[1749882160130,3.67932,2543.8,2543.7,0.07845082]
[1749882160731,3.2078,2543.8,2543.7,0.07845082]
[1749882161133,3.2078,2543.8,2543.7,0.54999082]
[1749882161327,3.2078,2543.8,2543.7,0.07845082]
[1749882161938,3.2078,2543.8,2543.7,0.54999082]
[1749882162234,3.2078,2543.8,2543.7,0.07845082]
[1749882164133,3.67932,2543.8,2543.7,0.07845082]
[1749882164635,3.67932,2543.8,2543.7,0.54999082]
[1749882164636,3.2078,2543.8,2543.7,0.54999082]
[1749882165331,3.2078,2543.8,2543.7,0.07845082]
[1749882165934,3.67932,2543.8,2543.7,0.07845082]
[1749882169931,4.60920254,2543.8,2543.7,0.07845082]
[1749882170340,3.2078,2543.8,2543.7,0.07845082]
[1749882170737,3.67932,2543.8,2543.7,0.07845082]
[1749882171336,4.60947657,2543.8,2543.7,0.07845082]
[1749882174741,4.13795657,2543.8,2543.7,0.07845082]
[1749882174944,4.13795657,2543.8,2543.7,0.54999082]
[1749882175340,3.2078,2543.8,2543.7,0.54999082]
[1749882175643,0.47144,2544.3,2544.0,0.47147]
[1749882175840,0.93204435,2544.2,2544.1,0.6789]
[1749882176339,0.93204435,2544.2,2544.1,1.15037]
[1749882176850,0.93204435,2544.2,2544.1,4.35817]
[1749882177040,7.79675,2544.8,2544.5,0.47139]
[1749882177241,0.93171241,2544.7,2544.4,0.47139]
[1749882177441,0.93171241,2544.6,2544.4,0.47139]
[1749882177641,0.93171241,2544.5,2544.4,0.47139]
[1749882178041,0.93094218,2544.5,2544.4,0.47139]
[1749882179751,6.667,2544.8,2544.5,0.47138]
[1749882179954,0.93026995,2544.7,2544.6,0.6297]
[1749882180649,0.93026995,2544.7,2544.6,1.10107]
[1749882180844,0.93026995,2544.7,2544.6,0.6297]
[1749882181151,1.40161995,2544.7,2544.3,0.47143]
[1749882181349,1.77185,2544.7,2544.4,0.47141]
[1749882182144,0.47134,2544.8,2544.5,0.47138]
[1749882182340,3.67913,2544.9,2544.6,0.47136]
[1749882182547,0.92947839,2544.8,2544.7,0.47135]
[1749882182941,0.92947839,2544.8,2544.6,0.47136]
[1749882183146,3.67912,2544.9,2544.5,3.2078]
[1749882183347,3.67912,2544.9,2544.6,0.47136]
[1749882183653,3.2078,2544.9,2544.2,3.2078]